[Event "Meltwater Champions Chess Tour 2022: Chessable Masters | Prelims"]
[White "Mishra, Abhimanyu"]
[Black "Praggnanandhaa, R"]
[WhiteFideId "30920019"]
[BlackFideId "25059530"]
[WhiteElo "2524"]
[BlackElo "1927"]
[Result "0-1"]
[Round "13"]
[TimeControl "900+10"]
[Date "2022.05.22"]
[WhiteClock "0:00:20"]
[BlackClock "0:00:49"]

1. e4 {[%clk 0:15:20]}  c5 {[%clk 0:15:20]} 2. Nf3 {[%clk 0:15:28]}  e6 {[%clk 0:15:29]} 3. g3 {[%clk 0:15:37]}  Nc6 {[%clk 0:15:38]} 4. Bg2 {[%clk 0:15:46]}  Nf6 {[%clk 0:15:47]} 5. Qe2 {[%clk 0:15:51]}  e5 {[%clk 0:15:56]} 6. O-O {[%clk 0:15:57]}  Be7 {[%clk 0:16:04]} 7. c3 {[%clk 0:16:00]}  O-O {[%clk 0:16:07]} 8. Na3 {[%clk 0:16:07]}  d6 {[%clk 0:16:16]} 9. Nc2 {[%clk 0:15:46]}  Re8 {[%clk 0:16:06]} 10. d3 {[%clk 0:15:53]}  h6 {[%clk 0:15:09]} 11. Ne3 {[%clk 0:15:10]}  Be6 {[%clk 0:15:12]} 12. Nh4 {[%clk 0:14:44]}  d5 {[%clk 0:15:17]} 13. Nhf5 {[%clk 0:14:10]}  d4 {[%clk 0:15:12]} 14. Nd5 {[%clk 0:14:16]}  Nxd5 {[%clk 0:15:20]} 15. exd5 {[%clk 0:14:24]}  Bxf5 {[%clk 0:15:29]} 16. dxc6 {[%clk 0:14:32]}  bxc6 {[%clk 0:15:37]} 17. Bxc6 {[%clk 0:12:31]}  Bd7 {[%clk 0:15:45]} 18. Bxa8 {[%clk 0:08:50]}  Qxa8 {[%clk 0:15:51]} 19. f3 {[%clk 0:08:23]}  Bd6 {[%clk 0:14:51]} 20. Bd2 {[%clk 0:08:04]}  f5 {[%clk 0:13:43]} 21. Rae1 {[%clk 0:07:25]}  Qd5 {[%clk 0:13:04]} 22. Qf2 {[%clk 0:06:13]}  Bc7 {[%clk 0:07:57]} 23. c4 {[%clk 0:04:24]}  Qd6 {[%clk 0:07:44]} 24. Re2 {[%clk 0:04:05]}  Bc6 {[%clk 0:07:41]} 25. a3 {[%clk 0:03:37]}  a5 {[%clk 0:07:49]} 26. b3 {[%clk 0:03:02]}  Ba8 {[%clk 0:04:34]} 27. Qe1 {[%clk 0:02:34]}  Qb6 {[%clk 0:03:49]} 28. b4 {[%clk 0:01:48]}  axb4 {[%clk 0:03:52]} 29. axb4 {[%clk 0:01:56]}  cxb4 {[%clk 0:04:02]} 30. Bxb4 {[%clk 0:01:55]}  Bc6 {[%clk 0:02:37]} 31. Ra2 {[%clk 0:00:47]}  Qb7 {[%clk 0:01:54]} 32. Ba5 {[%clk 0:00:42]}  Ra8 {[%clk 0:00:50]} 33. Qa1 {[%clk 0:00:27]}  Bd6 {[%clk 0:00:17]} 34. f4 {[%clk 0:00:19]}  exf4 {[%clk 0:00:16]} 35. Qxd4 {[%clk 0:00:15]}  Qe7 {[%clk 0:00:25]} 36. Qf2 {[%clk 0:00:12]}  Bc5 {[%clk 0:00:21]} 37. d4 {[%clk 0:00:16]}  Qe4 {[%clk 0:00:27]} 38. Qg2 {[%clk 0:00:14]}  Bxd4+ {[%clk 0:00:30]} 39. Kh1 {[%clk 0:00:22]}  Rxa5 {[%clk 0:00:36]} 40. Re2 {[%clk 0:00:14]}  Qxg2+ {[%clk 0:00:41]} 41. Rxg2 {[%clk 0:00:20]}  Ra2 {[%clk 0:00:49]} 0-1


[Site "http://www.chessbomb.com"]

[Event "Meltwater Champions Chess Tour 2022: Chessable Masters | Prelims"]
[White "Shankland, Sam"]
[Black "Grandelius, Nils"]
[WhiteFideId "2004887"]
[BlackFideId "1710400"]
[WhiteElo "2616"]
[BlackElo "2652"]
[Result "0-1"]
[Round "13"]
[TimeControl "900+10"]
[Date "2022.05.22"]
[WhiteClock "0:03:35"]
[BlackClock "0:03:07"]

1. d4 {[%clk 0:15:20]}  Nf6 {[%clk 0:15:20]} 2. c4 {[%clk 0:15:28]}  g6 {[%clk 0:15:26]} 3. f3 {[%clk 0:15:37]}  d5 {[%clk 0:15:21]} 4. cxd5 {[%clk 0:15:45]}  Nxd5 {[%clk 0:15:32]} 5. e4 {[%clk 0:15:54]}  Nb6 {[%clk 0:15:41]} 6. Nc3 {[%clk 0:16:03]}  Bg7 {[%clk 0:15:37]} 7. Be3 {[%clk 0:16:11]}  O-O {[%clk 0:15:27]} 8. Qd2 {[%clk 0:16:18]}  Nc6 {[%clk 0:15:00]} 9. O-O-O {[%clk 0:16:26]}  f5 {[%clk 0:15:08]} 10. e5 {[%clk 0:16:29]}  f4 {[%clk 0:14:43]} 11. Bxf4 {[%clk 0:15:19]}  Nb4 {[%clk 0:14:15]} 12. Bh6 {[%clk 0:14:04]}  Bxh6 {[%clk 0:11:02]} 13. Qxh6 {[%clk 0:14:11]}  N6d5 {[%clk 0:11:07]} 14. Bc4 {[%clk 0:13:39]}  b5 {[%clk 0:10:14]} 15. Bb3 {[%clk 0:13:29]}  a5 {[%clk 0:09:44]} 16. h4 {[%clk 0:12:14]}  a4 {[%clk 0:09:36]} 17. Bxd5+ {[%clk 0:11:57]}  Nxd5 {[%clk 0:09:43]} 18. Ne4 {[%clk 0:11:48]}  Qe8 {[%clk 0:07:23]} 19. Ng5 {[%clk 0:09:38]}  Rf7 {[%clk 0:07:30]} 20. Nxf7 {[%clk 0:09:18]}  Qxf7 {[%clk 0:07:40]} 21. Qd2 {[%clk 0:08:51]}  Ra6 {[%clk 0:06:12]} 22. Kb1 {[%clk 0:07:06]}  Bf5+ {[%clk 0:06:00]} 23. Ka1 {[%clk 0:07:13]}  Rc6 {[%clk 0:06:10]} 24. Nh3 {[%clk 0:05:15]}  Rc2 {[%clk 0:05:58]} 25. Ng5 {[%clk 0:03:55]}  Rxd2 {[%clk 0:05:37]} 26. Nxf7 {[%clk 0:04:04]}  Rxd1+ {[%clk 0:05:47]} 27. Rxd1 {[%clk 0:04:13]}  Kxf7 {[%clk 0:05:56]} 28. Rc1 {[%clk 0:04:22]}  Bd7 {[%clk 0:03:18]} 29. Rc5 {[%clk 0:03:42]}  c6 {[%clk 0:03:26]} 30. Kb1 {[%clk 0:03:49]}  Nf4 {[%clk 0:03:15]} 31. Kc2 {[%clk 0:03:35]}  Nxg2 {[%clk 0:03:07]} 0-1


[Site "http://www.chessbomb.com"]

[Event "Meltwater Champions Chess Tour 2022: Chessable Masters | Prelims"]
[White "Vidit, Santosh Gujrathi"]
[Black "Tari, Aryan"]
[WhiteFideId "5029465"]
[BlackFideId "1510045"]
[WhiteElo "2617"]
[BlackElo "2531"]
[Result "0-1"]
[Round "13"]
[TimeControl "900+10"]
[Date "2022.05.22"]
[WhiteClock "0:00:31"]
[BlackClock "0:01:21"]

1. e4 {[%clk 0:15:20]}  c6 {[%clk 0:15:20]} 2. d4 {[%clk 0:15:27]}  d5 {[%clk 0:15:28]} 3. e5 {[%clk 0:15:37]}  Bf5 {[%clk 0:15:37]} 4. h4 {[%clk 0:15:44]}  a6 {[%clk 0:15:45]} 5. g4 {[%clk 0:15:28]}  Bd7 {[%clk 0:15:50]} 6. Nc3 {[%clk 0:14:41]}  e6 {[%clk 0:15:49]} 7. Be3 {[%clk 0:14:38]}  c5 {[%clk 0:13:55]} 8. dxc5 {[%clk 0:14:45]}  Qc7 {[%clk 0:13:22]} 9. Nf3 {[%clk 0:13:48]}  Bxc5 {[%clk 0:13:25]} 10. Bxc5 {[%clk 0:13:18]}  Qxc5 {[%clk 0:13:36]} 11. Qd2 {[%clk 0:13:26]}  b5 {[%clk 0:11:27]} 12. Bd3 {[%clk 0:11:32]}  Ne7 {[%clk 0:11:24]} 13. O-O-O {[%clk 0:10:59]}  b4 {[%clk 0:10:26]} 14. Ne2 {[%clk 0:11:03]}  Bb5 {[%clk 0:09:17]} 15. Kb1 {[%clk 0:10:16]}  Nbc6 {[%clk 0:08:45]} 16. Nf4 {[%clk 0:09:49]}  h6 {[%clk 0:07:42]} 17. Rc1 {[%clk 0:08:26]}  Qb6 {[%clk 0:06:29]} 18. c4 {[%clk 0:06:03]}  dxc4 {[%clk 0:05:32]} 19. Bxc4 {[%clk 0:06:13]}  Rd8 {[%clk 0:05:10]} 20. Qe2 {[%clk 0:06:14]}  O-O {[%clk 0:04:14]} 21. Qe4 {[%clk 0:04:30]}  Nd4 {[%clk 0:03:35]} 22. Ng5 {[%clk 0:03:53]}  g6 {[%clk 0:02:40]} 23. Bxb5 {[%clk 0:03:33]}  Nxb5 {[%clk 0:02:21]} 24. Nh5 {[%clk 0:01:31]}  Nc3+ {[%clk 0:01:49]} 25. Rxc3 {[%clk 0:01:25]}  bxc3 {[%clk 0:01:59]} 26. Nf6+ {[%clk 0:01:30]}  Kg7 {[%clk 0:01:54]} 27. Qc2 {[%clk 0:00:46]}  hxg5 {[%clk 0:01:23]} 28. Qxc3 {[%clk 0:00:54]}  Qxf2 {[%clk 0:01:00]} 29. h5 {[%clk 0:00:31]}  Nd5 {[%clk 0:01:01]} 30. Nxd5 {[%clk 0:00:17]}  Rxd5 {[%clk 0:01:05]} 31. hxg6 {[%clk 0:00:26]}  Qd2 {[%clk 0:00:56]} 32. Qc7 {[%clk 0:00:14]}  Qd3+ {[%clk 0:01:03]} 33. Kc1 {[%clk 0:00:24]}  Qe3+ {[%clk 0:01:12]} 34. Kb1 {[%clk 0:00:31]}  Qe4+ {[%clk 0:01:21]} 0-1


[Site "http://www.chessbomb.com"]

[Event "Meltwater Champions Chess Tour 2022: Chessable Masters | Prelims"]
[White "Wei, Yi"]
[Black "Giri, Anish"]
[WhiteFideId "8603405"]
[BlackFideId "24116068"]
[WhiteElo "2752"]
[BlackElo "2730"]
[Result "0-1"]
[Round "13"]
[TimeControl "900+10"]
[Date "2022.05.22"]
[WhiteClock "0:00:43"]
[BlackClock "0:01:48"]

1. e4 {[%clk 0:15:20]}  c5 {[%clk 0:15:20]} 2. Nf3 {[%clk 0:15:28]}  d6 {[%clk 0:15:28]} 3. d4 {[%clk 0:15:37]}  cxd4 {[%clk 0:15:37]} 4. Nxd4 {[%clk 0:15:46]}  Nf6 {[%clk 0:15:47]} 5. Nc3 {[%clk 0:15:55]}  a6 {[%clk 0:15:56]} 6. Be3 {[%clk 0:16:03]}  e5 {[%clk 0:15:55]} 7. Nb3 {[%clk 0:16:12]}  Be7 {[%clk 0:16:05]} 8. h3 {[%clk 0:16:16]}  Be6 {[%clk 0:16:06]} 9. Qd2 {[%clk 0:16:23]}  Nbd7 {[%clk 0:14:23]} 10. O-O-O {[%clk 0:16:28]}  b5 {[%clk 0:13:18]} 11. g4 {[%clk 0:16:31]}  O-O {[%clk 0:10:48]} 12. a3 {[%clk 0:16:38]}  Nb6 {[%clk 0:08:20]} 13. g5 {[%clk 0:16:36]}  Nfd7 {[%clk 0:06:59]} 14. Na5 {[%clk 0:16:45]}  Qc7 {[%clk 0:07:01]} 15. Kb1 {[%clk 0:16:44]}  Rab8 {[%clk 0:06:09]} 16. Nd5 {[%clk 0:11:48]}  Nxd5 {[%clk 0:05:59]} 17. exd5 {[%clk 0:11:56]}  Bxd5 {[%clk 0:06:08]} 18. Qxd5 {[%clk 0:12:05]}  Qxa5 {[%clk 0:06:18]} 19. Bd3 {[%clk 0:11:31]}  Qc7 {[%clk 0:05:12]} 20. Qe4 {[%clk 0:10:32]}  g6 {[%clk 0:04:33]} 21. h4 {[%clk 0:10:35]}  Nc5 {[%clk 0:04:21]} 22. Bxc5 {[%clk 0:09:49]}  d5 {[%clk 0:03:40]} 23. Qxd5 {[%clk 0:05:27]}  Qxc5 {[%clk 0:03:48]} 24. Qb3 {[%clk 0:03:22]}  a5 {[%clk 0:03:24]} 25. Be4 {[%clk 0:03:31]}  a4 {[%clk 0:03:23]} 26. Qh3 {[%clk 0:03:21]}  b4 {[%clk 0:01:45]} 27. h5 {[%clk 0:03:30]}  bxa3 {[%clk 0:01:44]} 28. hxg6 {[%clk 0:03:33]}  Rxb2+ {[%clk 0:01:44]} 29. Ka1 {[%clk 0:03:41]}  h5 {[%clk 0:01:47]} 30. gxh6 {[%clk 0:01:08]}  fxg6 {[%clk 0:01:55]} 31. Qg3 {[%clk 0:00:43]}  Kh8 {[%clk 0:01:48]} 0-1


[Site "http://www.chessbomb.com"]

[Event "Meltwater Champions Chess Tour 2022: Chessable Masters | Prelims"]
[White "Carlsen, Magnus"]
[Black "Giri, Anish"]
[WhiteFideId "1503014"]
[BlackFideId "24116068"]
[WhiteElo "2847"]
[BlackElo "2730"]
[Result "1/2-1/2"]
[Round "14"]
[TimeControl "900+10"]
[Date "2022.05.22"]
[WhiteClock "0:13:47"]
[BlackClock "0:07:01"]

1. d4 {[%clk 0:15:20]}  Nf6 {[%clk 0:15:20]} 2. c4 {[%clk 0:15:27]}  g6 {[%clk 0:15:29]} 3. g3 {[%clk 0:15:17]}  c6 {[%clk 0:15:37]} 4. Bg2 {[%clk 0:15:24]}  d5 {[%clk 0:15:47]} 5. Qb3 {[%clk 0:15:15]}  Bg7 {[%clk 0:14:43]} 6. Nc3 {[%clk 0:15:23]}  dxc4 {[%clk 0:14:42]} 7. Qxc4 {[%clk 0:15:32]}  O-O {[%clk 0:14:16]} 8. Nf3 {[%clk 0:15:40]}  Bf5 {[%clk 0:14:24]} 9. O-O {[%clk 0:15:48]}  Nbd7 {[%clk 0:14:32]} 10. Qb3 {[%clk 0:14:54]}  Qb6 {[%clk 0:14:31]} 11. Bf4 {[%clk 0:15:02]}  Qxb3 {[%clk 0:11:52]} 12. axb3 {[%clk 0:15:10]}  h6 {[%clk 0:11:20]} 13. h4 {[%clk 0:15:11]}  Rfd8 {[%clk 0:10:58]} 14. b4 {[%clk 0:15:12]}  a6 {[%clk 0:11:01]} 15. Rfc1 {[%clk 0:14:45]}  Rac8 {[%clk 0:11:00]} 16. Ra5 {[%clk 0:14:42]}  Nb6 {[%clk 0:10:58]} 17. Raa1 {[%clk 0:14:07]}  Nfd5 {[%clk 0:10:10]} 18. Nxd5 {[%clk 0:14:15]}  Nxd5 {[%clk 0:10:09]} 19. Bd2 {[%clk 0:14:24]}  Be4 {[%clk 0:09:43]} 20. e3 {[%clk 0:14:33]}  Bxf3 {[%clk 0:08:11]} 21. Bxf3 {[%clk 0:14:41]}  e5 {[%clk 0:08:20]} 22. dxe5 {[%clk 0:14:27]}  Bxe5 {[%clk 0:08:30]} 23. Rc2 {[%clk 0:14:32]}  h5 {[%clk 0:08:31]} 24. Ra5 {[%clk 0:13:17]}  Bc7 {[%clk 0:08:38]} 25. Rac5 {[%clk 0:12:46]}  Bd6 {[%clk 0:08:30]} 26. R5c4 {[%clk 0:12:53]}  Nb6 {[%clk 0:08:00]} 27. Rd4 {[%clk 0:12:52]}  Be5 {[%clk 0:08:05]} 28. Rxd8+ {[%clk 0:13:01]}  Rxd8 {[%clk 0:08:15]} 29. Kf1 {[%clk 0:13:07]}  Nc4 {[%clk 0:06:43]} 30. Bc1 {[%clk 0:13:14]}  Nd6 {[%clk 0:06:52]} 31. Ke2 {[%clk 0:13:09]}  f5 {[%clk 0:06:53]} 32. Bd2 {[%clk 0:13:12]}  Kf7 {[%clk 0:06:51]} 33. Be1 {[%clk 0:13:14]}  Nb5 {[%clk 0:06:47]} 34. Bg2 {[%clk 0:13:21]}  Bf6 {[%clk 0:06:42]} 35. Bd2 {[%clk 0:13:19]}  Be5 {[%clk 0:06:42]} 36. Be1 {[%clk 0:13:28]}  Bf6 {[%clk 0:06:51]} 37. Bd2 {[%clk 0:13:37]}  Be5 {[%clk 0:07:01]} 38. Be1 {[%clk 0:13:47]} 1/2-1/2


[Site "http://www.chessbomb.com"]

[Event "Meltwater Champions Chess Tour 2022: Chessable Masters | Prelims"]
[White "Tari, Aryan"]
[Black "Wei, Yi"]
[WhiteFideId "1510045"]
[BlackFideId "8603405"]
[WhiteElo "2531"]
[BlackElo "2752"]
[Result "1/2-1/2"]
[Round "14"]
[TimeControl "900+10"]
[Date "2022.05.22"]
[WhiteClock "0:02:26"]
[BlackClock "0:00:52"]

1. e4 {[%clk 0:15:20]}  c5 {[%clk 0:15:20]} 2. Nf3 {[%clk 0:15:27]}  d6 {[%clk 0:15:28]} 3. Bb5+ {[%clk 0:15:36]}  Nd7 {[%clk 0:15:37]} 4. O-O {[%clk 0:15:44]}  a6 {[%clk 0:15:44]} 5. Bd3 {[%clk 0:15:53]}  Ngf6 {[%clk 0:15:53]} 6. Re1 {[%clk 0:15:34]}  e6 {[%clk 0:16:02]} 7. Bf1 {[%clk 0:15:29]}  b5 {[%clk 0:15:02]} 8. a4 {[%clk 0:15:35]}  Bb7 {[%clk 0:14:56]} 9. d4 {[%clk 0:15:39]}  b4 {[%clk 0:13:33]} 10. d5 {[%clk 0:14:26]}  exd5 {[%clk 0:12:28]} 11. exd5+ {[%clk 0:14:33]}  Be7 {[%clk 0:12:36]} 12. c4 {[%clk 0:12:52]}  bxc3 {[%clk 0:12:43]} 13. Nxc3 {[%clk 0:12:59]}  O-O {[%clk 0:12:50]} 14. a5 {[%clk 0:13:05]}  Re8 {[%clk 0:12:52]} 15. Bc4 {[%clk 0:12:23]}  Qc7 {[%clk 0:11:23]} 16. Qd3 {[%clk 0:11:58]}  h6 {[%clk 0:08:37]} 17. h3 {[%clk 0:11:56]}  Nf8 {[%clk 0:08:25]} 18. Bf4 {[%clk 0:10:59]}  Ng6 {[%clk 0:08:32]} 19. Bh2 {[%clk 0:11:07]}  Nd7 {[%clk 0:07:58]} 20. Re2 {[%clk 0:09:33]}  Rac8 {[%clk 0:06:40]} 21. Rae1 {[%clk 0:08:47]}  Nf6 {[%clk 0:06:43]} 22. Ne4 {[%clk 0:08:17]}  Red8 {[%clk 0:06:35]} 23. Ned2 {[%clk 0:06:17]}  Bf8 {[%clk 0:06:11]} 24. Nb3 {[%clk 0:05:11]}  Nxd5 {[%clk 0:05:27]} 25. Bxd5 {[%clk 0:05:15]}  c4 {[%clk 0:05:33]} 26. Qd2 {[%clk 0:04:24]}  Bxd5 {[%clk 0:04:46]} 27. Qxd5 {[%clk 0:04:34]}  cxb3 {[%clk 0:04:55]} 28. Re3 {[%clk 0:03:53]}  Ne7 {[%clk 0:04:38]} 29. Qxb3 {[%clk 0:03:53]}  Qxa5 {[%clk 0:04:40]} 30. Qa3 {[%clk 0:03:10]}  Nc6 {[%clk 0:03:16]} 31. Qxa5 {[%clk 0:02:43]}  Nxa5 {[%clk 0:03:25]} 32. Ra3 {[%clk 0:02:42]}  Nc4 {[%clk 0:03:34]} 33. Rxa6 {[%clk 0:02:51]}  Nxb2 {[%clk 0:03:37]} 34. Ra7 {[%clk 0:02:15]}  d5 {[%clk 0:03:26]} 35. Rb7 {[%clk 0:01:46]}  Nd3 {[%clk 0:03:16]} 36. Rd1 {[%clk 0:01:54]}  Nc5 {[%clk 0:01:26]} 37. Rb5 {[%clk 0:01:38]}  Ne4 {[%clk 0:01:25]} 38. Be5 {[%clk 0:01:47]}  Bc5 {[%clk 0:01:05]} 39. Bd4 {[%clk 0:01:21]}  Bxd4 {[%clk 0:00:54]} 40. Rxd4 {[%clk 0:01:31]}  Rc1+ {[%clk 0:00:38]} 41. Kh2 {[%clk 0:01:39]}  Nf6 {[%clk 0:00:48]} 42. Rd2 {[%clk 0:01:29]}  Ra8 {[%clk 0:00:46]} 43. g3 {[%clk 0:00:48]}  Ne4 {[%clk 0:00:35]} 44. Rdb2 {[%clk 0:00:57]}  Rd1 {[%clk 0:00:29]} 45. Kg2 {[%clk 0:01:00]}  Kh7 {[%clk 0:00:21]} 46. Rb7 {[%clk 0:01:07]}  f6 {[%clk 0:00:14]} 47. Rc2 {[%clk 0:01:09]}  Rda1 {[%clk 0:00:12]} 48. Rcc7 {[%clk 0:00:52]}  Rg8 {[%clk 0:00:20]} 49. Rc2 {[%clk 0:00:52]}  Rga8 {[%clk 0:00:27]} 50. Rcc7 {[%clk 0:01:01]}  Rg8 {[%clk 0:00:36]} 51. Rc2 {[%clk 0:01:11]}  Raa8 {[%clk 0:00:22]} 52. Nd4 {[%clk 0:01:18]}  Nd6 {[%clk 0:00:16]} 53. Rd7 {[%clk 0:01:16]}  Rad8 {[%clk 0:00:18]} 54. Rcc7 {[%clk 0:01:21]}  Nc4 {[%clk 0:00:12]} 55. Nf5 {[%clk 0:01:25]}  Rxd7 {[%clk 0:00:14]} 56. Rxd7 {[%clk 0:01:35]}  Nb6 {[%clk 0:00:16]} 57. Rb7 {[%clk 0:01:39]}  Na4 {[%clk 0:00:19]} 58. Rd7 {[%clk 0:01:48]}  Nb6 {[%clk 0:00:19]} 59. Rb7 {[%clk 0:01:56]}  Na4 {[%clk 0:00:17]} 60. Rd7 {[%clk 0:02:05]}  Nc3 {[%clk 0:00:25]} 61. Ne7 {[%clk 0:02:11]}  Re8 {[%clk 0:00:34]} 62. Nxd5 {[%clk 0:02:20]}  Nxd5 {[%clk 0:00:43]} 63. Rxd5 {[%clk 0:02:26]}  Kg6 {[%clk 0:00:52]} 1/2-1/2


[Site "http://www.chessbomb.com"]

[Event "Meltwater Champions Chess Tour 2022: Chessable Masters | Prelims"]
[White "Grandelius, Nils"]
[Black "Vidit, Santosh Gujrathi"]
[WhiteFideId "1710400"]
[BlackFideId "5029465"]
[WhiteElo "2652"]
[BlackElo "2617"]
[Result "0-1"]
[Round "14"]
[TimeControl "900+10"]
[Date "2022.05.22"]
[WhiteClock "0:00:20"]
[BlackClock "0:01:39"]

1. e4 {[%clk 0:15:20]}  d6 {[%clk 0:15:20]} 2. d4 {[%clk 0:15:24]}  Nf6 {[%clk 0:15:29]} 3. Nc3 {[%clk 0:15:31]}  e5 {[%clk 0:15:38]} 4. Nf3 {[%clk 0:15:34]}  Nbd7 {[%clk 0:15:47]} 5. Rg1 {[%clk 0:15:36]}  c6 {[%clk 0:15:07]} 6. g4 {[%clk 0:15:32]}  g6 {[%clk 0:12:42]} 7. g5 {[%clk 0:15:05]}  Nh5 {[%clk 0:12:50]} 8. Be3 {[%clk 0:15:15]}  Bg7 {[%clk 0:12:32]} 9. dxe5 {[%clk 0:14:08]}  dxe5 {[%clk 0:12:00]} 10. Qd6 {[%clk 0:14:12]}  Qe7 {[%clk 0:11:54]} 11. Qxe7+ {[%clk 0:13:27]}  Kxe7 {[%clk 0:12:02]} 12. O-O-O {[%clk 0:13:37]}  b6 {[%clk 0:11:43]} 13. Nb1 {[%clk 0:10:47]}  h6 {[%clk 0:08:56]} 14. h4 {[%clk 0:10:50]}  hxg5 {[%clk 0:09:01]} 15. hxg5 {[%clk 0:11:00]}  Nf4 {[%clk 0:08:33]} 16. Nbd2 {[%clk 0:11:03]}  Ne6 {[%clk 0:08:10]} 17. Nc4 {[%clk 0:10:25]}  c5 {[%clk 0:06:34]} 18. c3 {[%clk 0:06:54]}  Bb7 {[%clk 0:06:42]} 19. Nd6 {[%clk 0:07:03]}  Bc6 {[%clk 0:06:51]} 20. Bc4 {[%clk 0:07:12]}  Rh3 {[%clk 0:06:59]} 21. Ne1 {[%clk 0:05:31]}  Nd4 {[%clk 0:06:30]} 22. Nxf7 {[%clk 0:03:17]}  b5 {[%clk 0:06:39]} 23. Bf1 {[%clk 0:03:25]}  Rh4 {[%clk 0:05:48]} 24. Nxe5 {[%clk 0:02:03]}  Bxe5 {[%clk 0:05:14]} 25. cxd4 {[%clk 0:02:06]}  cxd4 {[%clk 0:05:22]} 26. Nf3 {[%clk 0:00:44]}  Bxe4 {[%clk 0:04:10]} 27. Nxd4 {[%clk 0:00:26]}  Rc8+ {[%clk 0:03:34]} 28. Kd2 {[%clk 0:00:35]}  Nb6 {[%clk 0:02:03]} 29. Bxb5 {[%clk 0:00:17]}  Bxd4 {[%clk 0:01:52]} 30. Bxd4 {[%clk 0:00:27]}  Rc2+ {[%clk 0:02:01]} 31. Ke1 {[%clk 0:00:30]}  Bf3 {[%clk 0:02:06]} 32. Bf6+ {[%clk 0:00:20]}  Ke6 {[%clk 0:02:11]} 33. Bd3 {[%clk 0:00:26]}  Bxd1 {[%clk 0:02:07]} 34. Kxd1 {[%clk 0:00:36]}  Rxf2 {[%clk 0:02:15]} 35. Bxg6 {[%clk 0:00:30]}  Nd5 {[%clk 0:02:22]} 36. Kc1 {[%clk 0:00:27]}  Nxf6 {[%clk 0:02:19]} 37. gxf6 {[%clk 0:00:37]}  Kxf6 {[%clk 0:02:28]} 38. Bd3 {[%clk 0:00:12]}  Rhh2 {[%clk 0:02:37]} 39. Re1 {[%clk 0:00:13]}  Rxb2 {[%clk 0:02:44]} 40. Bb1 {[%clk 0:00:23]}  Rbf2 {[%clk 0:02:40]} 41. Rd1 {[%clk 0:00:14]}  Ke5 {[%clk 0:02:46]} 42. Rd8 {[%clk 0:00:13]}  a5 {[%clk 0:02:22]} 43. a4 {[%clk 0:00:13]}  Rhg2 {[%clk 0:01:44]} 44. Rd1 {[%clk 0:00:16]}  Kf4 {[%clk 0:01:43]} 45. Re1 {[%clk 0:00:15]}  Rg3 {[%clk 0:01:31]} 46. Re4+ {[%clk 0:00:19]}  Kg5 {[%clk 0:01:38]} 47. Re5+ {[%clk 0:00:12]}  Kf6 {[%clk 0:01:47]} 48. Rd5 {[%clk 0:00:20]}  Rc3+ {[%clk 0:01:40]} 49. Kd1 {[%clk 0:00:29]}  Ra3 {[%clk 0:01:33]} 50. Bc2 {[%clk 0:00:20]}  Ra1+ {[%clk 0:01:39]} 0-1


[Site "http://www.chessbomb.com"]

[Event "Meltwater Champions Chess Tour 2022: Chessable Masters | Prelims"]
[White "Praggnanandhaa, R"]
[Black "Shankland, Sam"]
[WhiteFideId "25059530"]
[BlackFideId "2004887"]
[WhiteElo "1927"]
[BlackElo "2616"]
[Result "1/2-1/2"]
[Round "14"]
[TimeControl "900+10"]
[Date "2022.05.22"]
[WhiteClock "0:01:49"]
[BlackClock "0:04:38"]

1. d4 {[%clk 0:15:20]}  Nf6 {[%clk 0:15:20]} 2. c4 {[%clk 0:15:28]}  e6 {[%clk 0:15:27]} 3. Nf3 {[%clk 0:15:36]}  d5 {[%clk 0:15:35]} 4. Nc3 {[%clk 0:15:45]}  c6 {[%clk 0:15:42]} 5. e3 {[%clk 0:15:54]}  Nbd7 {[%clk 0:15:49]} 6. Qc2 {[%clk 0:16:01]}  Bd6 {[%clk 0:15:56]} 7. b3 {[%clk 0:16:10]}  O-O {[%clk 0:16:02]} 8. Be2 {[%clk 0:16:19]}  b6 {[%clk 0:16:06]} 9. O-O {[%clk 0:16:22]}  Bb7 {[%clk 0:16:15]} 10. Bb2 {[%clk 0:16:30]}  Qe7 {[%clk 0:16:24]} 11. Rad1 {[%clk 0:16:38]}  Rad8 {[%clk 0:16:32]} 12. Rfe1 {[%clk 0:16:44]}  Rfe8 {[%clk 0:16:37]} 13. Bf1 {[%clk 0:16:52]}  Nf8 {[%clk 0:16:13]} 14. e4 {[%clk 0:10:36]}  dxe4 {[%clk 0:16:15]} 15. Nxe4 {[%clk 0:10:43]}  Nxe4 {[%clk 0:16:24]} 16. Qxe4 {[%clk 0:08:43]}  c5 {[%clk 0:16:23]} 17. d5 {[%clk 0:08:50]}  f6 {[%clk 0:16:27]} 18. Qc2 {[%clk 0:06:47]}  Qf7 {[%clk 0:16:15]} 19. g3 {[%clk 0:06:00]}  exd5 {[%clk 0:15:09]} 20. Rxe8 {[%clk 0:05:58]}  Rxe8 {[%clk 0:15:17]} 21. cxd5 {[%clk 0:06:07]}  Ng6 {[%clk 0:14:57]} 22. Bb5 {[%clk 0:05:32]}  Rd8 {[%clk 0:14:17]} 23. Bc6 {[%clk 0:04:12]}  Bc8 {[%clk 0:13:46]} 24. Qe4 {[%clk 0:03:54]}  Ne7 {[%clk 0:13:33]} 25. Bb5 {[%clk 0:04:00]}  a6 {[%clk 0:12:23]} 26. Bf1 {[%clk 0:03:44]}  Qh5 {[%clk 0:10:26]} 27. Bg2 {[%clk 0:03:15]}  b5 {[%clk 0:09:45]} 28. Rd2 {[%clk 0:03:01]}  Re8 {[%clk 0:08:52]} 29. Qd3 {[%clk 0:01:52]}  Bf5 {[%clk 0:08:25]} 30. Qf1 {[%clk 0:02:00]}  Be4 {[%clk 0:07:32]} 31. Nh4 {[%clk 0:01:38]}  Ng6 {[%clk 0:06:19]} 32. Nxg6 {[%clk 0:01:36]}  Bxg2 {[%clk 0:05:58]} 33. Kxg2 {[%clk 0:01:43]}  hxg6 {[%clk 0:06:05]} 34. a4 {[%clk 0:01:35]}  Bf4 {[%clk 0:03:55]} 35. gxf4 {[%clk 0:01:03]}  Qg4+ {[%clk 0:04:04]} 36. Kh1 {[%clk 0:01:12]}  Qf3+ {[%clk 0:04:13]} 37. Kg1 {[%clk 0:01:21]}  Qg4+ {[%clk 0:04:20]} 38. Kh1 {[%clk 0:01:30]}  Qf3+ {[%clk 0:04:29]} 39. Kg1 {[%clk 0:01:39]}  Qg4+ {[%clk 0:04:38]} 40. Kh1 {[%clk 0:01:49]} 1/2-1/2


[Site "http://www.chessbomb.com"]